Cogmind - Beta 17.1 @@@ ROGUE MODE // 2026.09.22 @ 15:51:50 Player: Zane Result: Destroyed by as-11563 with Assembled Blade Performance ------------- Evolutions (0) 0 Regions Visited (4) 800 Robots Destroyed (20) 100 Value Destroyed (339) 339 Prototype IDs (25) 500 Alien Tech Used (0) 0 Bonus (300) 300 TOTAL SCORE: 2039 Bonus ------- Aligned with FarCom 300 Cogmind --------- Core Integrity 0/250 Matter 129/300 Energy 99/100 System Corruption 1% Temperature Warning (324) Movement Treading (160) Location -9/Mines Parts ------- > --- POWER (1) -------- (None) > --- PROPULSION (2) --- Light Treads > --- UTILITY (2) ------ Medium Storage Unit Utility Shielding > --- WEAPON (2) ------- Beam Cannon > --- INVENTORY (10) --- Improved Terrain Scanner Mining Laser Peak State ------------ > --- POWER ------------ Light Nuclear Core > --- PROPULSION ------- Light Treads Aluminum Leg > --- UTILITY ---------- Medium Storage Unit Light Armor Plating > --- WEAPON ----------- Beam Cannon Assault Rifle > --- INVENTORY -------- Light Ion Engine Light Treads Heat Sink Improved Terrain Scanner Utility Shielding Guided Plasma Cannon Mining Laser [Rating: 10] Favorites ----------- Power Light Ion Engine Engine Light Ion Engine Power Core Light Nuclear Core Propulsion Aluminum Leg Treads Light Treads Leg Aluminum Leg Utility Medium Storage Unit Device Seismic Detector Storage Medium Storage Unit Protection Light Armor Plating Weapon Beam Cannon Energy Gun Small Laser Energy Cannon Beam Cannon Ballistic Gun Light Assault Rifle Build | -11 -10 -10 -10 -9 ------- Run | Yrd Mat Min Exi Min Slots Evolved . | . . . . . Power . | . . . . . Propulsion . | . . . . . Utility . | . . . . . Weapon . | . . . . . Parts Attached 18 | 7 3 1 . 7 Power 3 | 1 1 . . 1 Engine 2 | 1 1 . . . Core 1 | . . . . 1 Reactor . | . . . . . Propulsion 4 | 2 . . . 2 Treads 2 | . . . . 2 Leg 2 | 2 . . . . Wheel . | . . . . . Hover . | . . . . . Flight . | . . . . . Utility 6 | 2 1 . . 3 Device 2 | 1 . . . 1 Storage 2 | 1 1 . . . Processor . | . . . . . Hackware . | . . . . . Protection 2 | . . . . 2 Artifact . | . . . . . Weapon 5 | 2 1 1 . 1 Energy Gun 1 | 1 . . . . Energy Cannon 2 | . 1 1 . . Ballistic Gun 2 | 1 . . . 1 Ballistic Cannon . | . . . . . Launcher . | . . . . . Special Weapon . | . . . . . Impact Weapon . | . . . . . Slashing Weapon . | . . . . . Piercing Weapon . | . . . . . Special Melee Weapon . | . . . . . Unidentified Prototypes . | . . . . . Parts Lost 11 | . 1 1 . 9 Power 2 | . 1 . . 1 Propulsion 3 | . . . . 3 Utility 3 | . . . . 3 Weapon 3 | . . 1 . 2 Highest Loss Streak 4 | . 1 1 . 4 To Critical Strikes . | . . . . . Average Backups 8 | 3 9 9 9 6 Power . | . 1 1 1 . Propulsion 2 | 2 3 2 2 1 Utility 3 | . 3 4 4 3 Weapon 1 | . 1 2 2 2 Tool/Special . | . . . . . Unused Backups 4 | . 2 . . 2 Power . | . . . . . Propulsion 2 | . 2 . . . Utility 1 | . . . . 1 Weapon 1 | . . . . 1 Tool/Special . | . . . . . Average Slot Usage (%) 97 | . 99 98 100 87 Engine 12 | . 13 14 14 6 Treads 2 | . . . . 10 Leg 25 | . 28 28 28 14 Device 12 | . 14 14 14 7 Storage 13 | . 14 14 14 9 Protection 1 | . . . . 9 Energy Gun 8 | . 14 3 . . Energy Cannon 17 | . 12 22 28 20 Ballistic Gun 2 | . 1 . . 6 Peak Build Rating 10 | 7 8 8 9 10 Average Rating 7 | 5 7 7 8 7 On Entrance 6 | . 7 8 8 9 Avg Prop Armor Cover (%) . | . . . . . Naked Turns . | . . . . . Heaviest Build 23 | 11 18 20 20 23 Greatest Support 20 | 20 20 20 20 20 Greatest Overweight (x) 1 | . . . . 1 Average Overweight (x) . | . . . . . Largest Inventory Capacity 10 | 8 10 10 10 10 Average Capacity 9 | 6 9 10 10 8 Most Carried 10 | 6 10 10 10 10 Average Carried 8 | 4 9 9 9 6 Final Capacity 10 | 8 10 10 10 10 Final Carried 10 | 6 10 9 10 2 Class Distribution -------------------- 100% | Mutant Dominant Class ---------------- Mutant | -10/Materials Mutant | -10/Mines Mutant | -10/Exiles Mutant | -9/Mines Resources | -11 -10 -10 -10 -9 ----------- Run | Yrd Mat Min Exi Min Matter Collected 329 | 208 94 10 . 17 Remotely . | . . . . . Salvage Created 753 | 111 332 44 . 266 Parts 32 | 5 19 3 . 5 Haulers Intercepted . | . . . . . Recyclers Shooed . | . . . . . Parts Field Recycled . | . . . . . Retrieved Matter . | . . . . . Parts Self-Destructed . | . . . . . Prevented . | . . . . . Parts Restored . | . . . . . Kills | -11 -10 -10 -10 -9 ------- Run | Yrd Mat Min Exi Min Combat Hostiles Destroyed 29 | . 8 3 . 18 Guns 14 | . 2 . . 12 Cannons 15 | . 6 3 . 6 Classes Destroyed 7 | 2 4 . . 1 Worker 1 | . 1 . . . Tunneler 2 | 2 . . . . Recycler 1 | 1 . . . . Watcher 2 | . 2 . . . Swarmer 9 | . 3 3 . 3 Grunt 5 | . 5 . . . Assembled 15 | . . . . 15 Best Kill Streak 12 | 3 3 3 . 12 Combat Bots Only 12 | . 3 3 . 12 Max Kills in Single Turn 2 | 1 1 1 . 2 Gunslinging . | . . . . . Exploded . | . . . . . Melee . | . . . . . Uniques/NPCs Destroyed . | . . . . . Combat | -11 -10 -10 -10 -9 -------- Run | Yrd Mat Min Exi Min Hostile Shots Fired 118 | . 32 16 . 70 Missed 27 | . 12 2 . 13 Hits 91 | . 20 14 . 57 Melee 18 | . . . . 18 Projectile 73 | . 20 14 . 39 Critical Strikes 1 | . . . . 1 Damage Taken 1386 | . 252 120 . 1014 Core 273 | . 17 27 . 229 Absorbed by Shields . | . . . . . Redirected to Shielding 4 | . . . . 4 Core Remaining (%) 100 | 100 . . . . Volleys Fired 97 | 7 26 7 . 57 Largest 2 | 2 2 2 . 2 Hottest 120 | 60 100 100 . 120 Shots Fired 168 | 14 52 10 . 92 Gun 89 | 14 26 3 . 46 Cannon 79 | . 26 7 . 46 Launcher . | . . . . . Special . | . . . . . Kinetic 53 | 7 . . . 46 Thermal 115 | 7 52 10 . 46 Explosive . | . . . . . Electromagnetic . | . . . . . Robot Hit Streak 16 | 10 16 2 . 12 Robot Miss Streak 4 | 1 4 3 . 2 Penetration Max . | . . . . . Secondary Targets . | . . . . . Shots Hit Robots 113 | 11 35 5 . 62 Core Hits 56 | 5 15 3 . 33 Critical Kills 1 | . . . . 1 Critical Parts Destroyed 1 | . . . . 1 Critical Strikes 2 | . . . . 2 Destroy 2 | . . . . 2 Melee Attacks . | . . . . . Impact . | . . . . . Slashing . | . . . . . Piercing . | . . . . . Sneak Attacks . | . . . . . Combat Hostiles . | . . . . . Follow-up Attacks . | . . . . . Damage Inflicted 1648 | 104 517 94 . 933 Guns 768 | 104 211 24 . 429 Cannons 869 | . 295 70 . 504 Explosions . | . . . . . Melee . | . . . . . Ramming 11 | . 11 . . . Kinetic 474 | 45 . . . 429 Thermal 1163 | 59 506 94 . 504 Explosive . | . . . . . Electromagnetic . | . . . . . Impact . | . . . . . Slashing . | . . . . . Piercing . | . . . . . Highest Corruption 1 | . . . . 1 Average Corruption 1 | . . . . 1 Corruption Purged . | . . . . . Corruption Blocked . | . . . . . Effects 1 | . . . . 1 Heat Flow Errors 1 | . . . . 1 Overload Shots . | . . . . . Overflow Damage . | . . . . . Projectiles . | . . . . . Explosions . | . . . . . Melee . | . . . . . Knockbacks . | . . . . . Impact . | . . . . . Kinetic . | . . . . . Secondary . | . . . . . Self-Inflicted Damage . | . . . . . Shots . | . . . . . Rammed . | . . . . . Targets Rammed 4 | 1 3 . . . Kicked 4 | 1 3 . . . Crushed . | . . . . . Highest Temperature 399 | 40 223 197 . 399 Average Temperature 105 | 21 80 104 . 137 Received Heat Transfer 302 | . 102 . . 200 Effects 1 | . . . . 1 Interference 1 | . . . . 1 Siege Activations . | . . . . . Martial Activations . | . . . . . Shielding Activations . | . . . . . Robots Disrupted . | . . . . . Combat Hostiles . | . . . . . Robots Corrupted . | . . . . . Combat Hostiles . | . . . . . Parts Fried . | . . . . . Impact Corruptions . | . . . . . Robots Melted . | . . . . . Combat Hostiles . | . . . . . Parts Melted 2 | . 2 . . . Heat Transferred 2500 | 125 1104 198 . 1073 Parts Sabotaged . | . . . . . Parts Stolen . | . . . . . Parts Stripped . | . . . . . Power Chain Reactions . | . . . . . Alert | -11 -10 -10 -10 -9 ------- Run | Yrd Mat Min Exi Min Maximum Alert Level . | . . . . . Low Security (%) 100 | 100 100 100 . 100 Level 1 . | . . . . . Level 2 . | . . . . . Level 3 . | . . . . . Level 4 . | . . . . . Level 5 . | . . . . . High Security . | . . . . . Max Security . | . . . . . Peak Influence 82 | 10 82 60 . 70 Initial . | . . . . . Average 24 | 1 28 38 . 17 Influence Increases 435 | 15 280 70 . 70 Destroy 0b10 Robot/C 280 | . 160 60 . 60 Destroy 0b10 Robot/NC 30 | 15 15 . . . Destroy Leader 54 | . 34 10 . 10 Successful Hack 23 | . 23 . . . Destroy Structure 3 | . 3 . . . Lose Combat Pursuer 45 | . 45 . . . Influence Decreases 435 | 15 279 41 30 70 Entered New Map 31 | . . 1 30 . Time Decay 384 | 15 279 30 . 60 Lost Part 20 | . . 10 . 10 Squads Dispatched . | . . . . . Investigation . | . . . . . Extermination . | . . . . . Reinforcement . | . . . . . Assault . | . . . . . Garrison . | . . . . . Intercept . | . . . . . Searches Triggered . | . . . . . Construction Impeded . | . . . . . Haulers Reinforced . | . . . . . Active Scanning Responses . | . . . . . Cargo Convoy Interrupts . | . . . . . Stealth | -11 -10 -10 -10 -9 --------- Run | Yrd Mat Min Exi Min Distress Signals . | . . . . . Communications Jammed . | . . . . . Distress Signals . | . . . . . Times Spotted 56 | . 15 3 . 38 Peak Tracking Total 20 | . 5 3 . 20 Tactical Retreats 7 | . 2 . . 5 Traps | -11 -10 -10 -10 -9 ------- Run | Yrd Mat Min Exi Min Traps Triggered 1 | . 1 . . . Indirectly . | . . . . . Trap Hack Attempts . | . . . . . Triggered . | . . . . . Disarmed . | . . . . . Reprogrammed . | . . . . . Reused . | . . . . . Traps Extracted . | . . . . . Installed . | . . . . . Triggered . | . . . . . Machines | -11 -10 -10 -10 -9 ---------- Run | Yrd Mat Min Exi Min Machines Disabled . | . . . . . Max in Single Turn . | . . . . . Machines Repaired . | . . . . . Machines Dismantled . | . . . . . Machines Sabotaged . | . . . . . Overloaded Fab Kills . | . . . . . Hacking | -11 -10 -10 -10 -9 --------- Run | Yrd Mat Min Exi Min Machines Accessed 7 | . 6 . 1 . Terminals 6 | . 6 . . . Fabricators . | . . . . . Repair Stations . | . . . . . Recycling Units . | . . . . . Scanalyzers . | . . . . . Garrison Access . | . . . . . Total Hacks 18 | . 17 . 1 . Successful 9 | . 8 . 1 . Failed 9 | . 9 . . . Catastrophic 4 | . 4 . . . Database Lockouts . | . . . . . Manual 5 | . 4 . 1 . Terminals 17 | . 17 . . . Fabricators . | . . . . . Repair Stations . | . . . . . Recycling Units . | . . . . . Scanalyzers . | . . . . . Garrison Access . | . . . . . Terminal Hacks 7 | . 6 . 1 . Prototype ID Bank 1 | . 1 . . . Locate Traps 3 | . 3 . . . Maintenance Status 1 | . 1 . . . Hauler Manifests 1 | . 1 . . . Proto ID Catalog 1 | . . . 1 . Fabricator Hacks . | . . . . . Repair Station Hacks . | . . . . . Recycling Unit Hacks . | . . . . . Scanalyzer . | . . . . . Garrison Access Hacks . | . . . . . Unauthorized Hacks 2 | . 2 . . . Terminals 2 | . 2 . . . Botnet 1 | . 1 . . . Operators 1 | . 1 . . . Fabricators . | . . . . . Repair Stations . | . . . . . Recycling Units . | . . . . . Scanalyzers . | . . . . . Garrison Access . | . . . . . Data Cores Recovered . | . . . . . Used . | . . . . . Hacking Detections 6 | . 6 . . . Full Trace Events . | . . . . . Feedback Events . | . . . . . Feedback Blocked . | . . . . . Robot Schematics Acquired . | . . . . . Robots Built . | . . . . . Authchips . | . . . . . Time . | . . . . . Total Robot Build Rating . | . . . . . Part Schematics Acquired . | . . . . . Parts Built . | . . . . . Authchips . | . . . . . Time . | . . . . . Total Part Build Rating . | . . . . . Part Studies Acquired . | . . . . . Parts Repaired . | . . . . . Time . | . . . . . Parts Recycled . | . . . . . Recycled Matter . | . . . . . Retrieved Matter . | . . . . . Retrieved Components . | . . . . . Parts Scanalyzed . | . . . . . Part Schematics Acquired . | . . . . . Parts Damaged . | . . . . . Bothacking | -11 -10 -10 -10 -9 ------------ Run | Yrd Mat Min Exi Min Used RIF Installer . | . . . . . Robots Hacked . | . . . . . Non-combat . | . . . . . Combat . | . . . . . Robot Hacks Applied . | . . . . . Relay Couplers Released . | . . . . . Fabnet Peak Effective % . | . . . . . Robots Rewired . | . . . . . Allies Hacked . | . . . . . Hacks Repelled . | . . . . . Allies | -11 -10 -10 -10 -9 -------- Run | Yrd Mat Min Exi Min Total Allies . | . . . . . Largest Group . | . . . . . Highest-Rated Group . | . . . . . Highest-Rated Ally . | . . . . . Total Orders . | . . . . . Ally Attacks . | . . . . . Total Damage . | . . . . . Kills . | . . . . . Allies Corrupted . | . . . . . Allies Melted . | . . . . . Intel | -11 -10 -10 -10 -9 ------- Run | Yrd Mat Min Exi Min Active Infowar (turns) 1350 | 22 874 74 253 127 Seismic 1350 | 22 874 74 253 127 Robot Analysis Total . | . . . . . Derelict Logs Recovered 1 | . . . . 1 Drone Launches . | . . . . . Drone Recoveries . | . . . . . Exploration | -11 -10 -10 -10 -9 ------------- Run | Yrd Mat Min Exi Min Turns Passed 1583 | 88 874 74 253 294 Spaces Moved 997 | 44 596 47 211 99 Core 3 | 3 . . . . Treads 1 | . . . . 1 Legs 993 | 41 596 47 211 98 Wheels . | . . . . . Hover . | . . . . . Flight . | . . . . . Fastest Speed 50 | 50 120 120 120 120 Average Speed 119 | 115 120 120 120 121 Slowest Speed 240 | 120 120 120 120 240 Overloaded Moves . | . . . . . Propulsion Burnouts . | . . . . . Robots Hopped . | . . . . . Potential Cave-ins . | . . . . . Cave-ins Triggered . | . . . . . Exploration Rate (%) 40 | 3 96 16 59 26 Regions Visited 4 Branch Regions 3 Pre-discovered Areas 1 | . . . . 1 Known Exits Taken . | . . . . . Unknown Exits Taken 4 | 1 1 1 1 . Scrap Searched . | . . . . . Spaces Dug . | . . . . . Terrain Destroyed . | . . . . . Melee . | . . . . . Projectile . | . . . . . AOE . | . . . . . Terrain Rammed . | . . . . . Walls Destroyed . | . . . . . Machines Disabled . | . . . . . Actions | -11 -10 -10 -10 -9 --------- Run | Yrd Mat Min Exi Min Total 1212 | 65 702 54 211 180 Wait 79 | 1 62 . . 16 Move 993 | 43 595 46 210 99 Hop . | . . . . . Pick Up 15 | 6 8 . 1 . Fast Attach 8 | 7 1 . . . Attach 8 | . 1 1 . 6 Detach . | . . . . . Swap 4 | . 2 . . 2 Drop 4 | . 4 . . . Fire 97 | 7 26 7 . 57 Melee . | . . . . . Ram . | . . . . . Kick 4 | 1 3 . . . Crush . | . . . . . Escape Stasis . | . . . . . Rewire . | . . . . . Trap . | . . . . . Miscellaneous . | . . . . . Route ------- -11/Scrapyard -10/Materials (discovered 4 exits: [*Mat x3] / [*Min]) -10/Mines -10/Exiles (discovered 2 exits: [*Min x2]) -9/Mines History --------- Turn | Location | Event 15 | -11/Scrapyard | Discovered new exit (range 13) 89 | -11/Scrapyard | Entered Materials 302 | -10/Materials | Build established: Mutant 305 | -10/Materials | Discovered new exit (range 3) 675 | -10/Materials | Discovered new exit (range 5) 857 | -10/Materials | Discovered new exit (range 16) 948 | -10/Materials | Discovered new exit (range 7) 963 | -10/Materials | Entered Mines 1031 | -10/Mines | Deemed a non-threat by the Exiles lab entrance 1032 | -10/Mines | Discovered new exit (range 5) 1037 | -10/Mines | Entered Exiles 1053 | -10/Exiles | Discovered new exit (range 15) 1070 | -10/Exiles | Met 8R-AWN 1088 | -10/Exiles | Met EX-HEX 1125 | -10/Exiles | Met EX-BIN 1139 | -10/Exiles | Aligned with FarCom system 1141 | -10/Exiles | Given EX-Vault access code 1171 | -10/Exiles | Opened EX-Vault 1177 | -10/Exiles | Found Gui. Plasma Cannon 1200 | -10/Exiles | Warned to stay clear of 0b10 Research branches 1239 | -10/Exiles | Met EX-DEC 1281 | -10/Exiles | Discovered new exit (range 10) 1290 | -10/Exiles | Left Exiles lab with Gui. Plasma Cannon 1290 | -10/Exiles | Entered Mines 1311 | -9/Mines | Found a hidden stash of uninstalled traps 1381 | -9/Mines | Learned location of Storage (-9) 1399 | -9/Mines | Assembled infested the area 1448 | -9/Mines | Lost 3 parts (1n1u1w) 1528 | -9/Mines | Core integrity fell below 50% 1533 | -9/Mines | Lost 4 parts (1p2n1u) 1543 | -9/Mines | Core integrity fell below 20% 1584 | -9/Mines | Destroyed by as-11563 with Assembled Blade Last Messages --------------- 01496_ as-94378 destroyed. 01499_ as-66108 suffers critical hit (Destroy). 01499_ Destroyed Asb. F-torch. 01502_ Lgt. Treads destroyed. 01508_ as-14672 destroyed. 01511_ as-55515 destroyed. 01523_ as-07857 destroyed. 01532_ as-46561 destroyed. 01535_ Lgt. Armor Plating destroyed. 01535_ System corrupted by crushing effect (+1). 01536_ Overheating: System interference. 01536_ Beam Cannon temporarily disabled. 01540_ as-92784 destroyed. 01555_ Destroyed Asb. Hover Unit. 01559_ as-48718 destroyed. 01563_ as-21943 destroyed. 01565_ Assault Rifle destroyed. 01575_ as-99028 destroyed. [Achievement: Exterminator] 01580_ System corrupted: Heat flow error (+239). Map ----- +----------------------------------------------------+ | | | | | | | | | | | | | | | | | | | | | | | | | | | | | | | | | ???????????????????????????????????????????? | | ???????????????????????????????????????????? | | ???????????????????????????????????????????? | | ???????????????????????????????????????????? | | ???????????????????????????????????????????? | | ???????????????????????????????????????????? | | ???????????????????####????????????????????? | | ??????????????????## ##???????????????????? | | ??????????????????# ##??????????????????? | | ????????# ####@* #??????????????????? | | ????????# aa%% ! #??????????????????? | | ???????# ##### =%=#??????????????????? | | ???????????????????# #####??????????????? | | ???????????????????# #??????????????? | | ???????????????????# ### #??????????????? | | ???????????????????## ##?# #???####???????? | | ????????????????????## #??# #??## ##??????? | | ?????????????????????# #??# #??# ##?????? | | ?????????????????????# #### #### ##????? | | ?????????????????????# ##???? | | ?????????????????????####### #### ##### | | ???????????????????????????# #??## | | ???????????????????????????# ???# | | ??????????????????????????? ??## ####### | | ??????????????????????????? #??####?????? | | ??????????????????????????? #???????????? | | ??????????????????????????? ##???????????? | | ??????????????????????????? #????????????? | | ??????????????????????????? ????????????? | | ?????????????????????????? ????????????? | | ?????????????????????????? ????????????? | | ??????????????????????????# ????????????? | | ???????????????????????????# ????????????? | | ????????????????????????????# ????????????? | +----------------------------------------------------+ Best States ------------- Heat Dissipation 35 Energy Generation 14 Energy Capacity 160 Matter Stores 300 Matter Capacity 300 Sight Range 16 Terrain Scan Density 10 Armor Coverage 150 Utility Shielding 33 Evasion (%) 55 Recoil Reduction 2 Item Schematics ----------------- None Robot Schematics ------------------ None Fabricated ------------ Nothing Repaired ---------- Nothing Studied --------- None Alien Tech Used ----------------- None Achievements -------------- Exterminator Challenges ------------ None Game ------ Seed MomentumAluminumDissipator Manual? 0 Play Time 00:16:15 Cumulative 94.8 hours Start 2026.09.22 @ 15:33:16 End 2026.09.22 @ 15:51:50 Sessions 1 Manual Loads 0 Difficulty Rogue Special Mode None Game No. 100 Rogue 100 Adventurer 0 Explorer 0 Win Type - Total 2 Types 2/0/0/0/0/0/0/0/0/0 Lore% 60 Gallery% 47 Achievement% 37 Wizard Run 0 Options --------- Layout 1 ASCII 0 Keyboard 1 Movement Numpad Keybinds 0 Fullscreen 2 Font 24/Smallcaps Map View 50x35 Zoom Use 0% Tactical HUD 1 Map Filters NONE Filters NONE Steam 1 RUN: 9193adbc-1bbf-4837-8eba-76d92ff038fa